fUSD/lending_fUSD_20240828
["ID","MTS","AMOUNT","RATE_DAILY","PERIOD"]
[336466363,1724856645714,-2000.0,0.000247,2]
[336466364,1724856645724,-500.0,0.000247,2]
[336466365,1724856645734,-500.0,0.000247,2]
[336466366,1724856645744,-500.0,0.000247,2]
[336466367,1724856645755,-500.0,0.000247,2]
[336466368,1724856645765,-2393.2536,0.00024779,2]
[336466369,1724856645777,-217.0,0.00024799,2]
[336466370,1724856645787,-193.0,0.000248,8]
[336466371,1724856645797,-165.19422617,0.000248,2]
[336466372,1724856645808,-150.0,0.00024802,2]
[336466373,1724856645818,-261.475,0.00024831,2]
[336466374,1724856645828,-181.0,0.00024874,120]
[336466375,1724856645837,-280.91,0.00024874,120]
[336466376,1724856645847,-390.0,0.00024874,120]
[336466377,1724856645857,-150.5,0.00024874,120]
[336466378,1724856645866,-1315.0,0.00024874,120]
[336466379,1724856645876,-160222.898036,0.0002488,4]
[336466380,1724856645886,-26703.8163392,0.0002488,4]
[336466381,1724856645895,-1858.59631096,0.0002488,4]
[336466382,1724856645904,-181.0,0.00024884,120]
[336466383,1724856645914,-390.0,0.00024884,120]
[336466384,1724856645924,-150.5,0.00024884,120]
[336466385,1724856645939,-185.12,0.00024884,120]
[336466386,1724856645948,-150.5,0.00024884,120]
[336466387,1724856645958,-1315.0,0.00024884,120]
[336466388,1724856645967,-80111.4490177,0.00024884,4]
[336466389,1724856645977,-4646.4907774,0.00024884,4]
[336466390,1724856645986,-158.44222575,0.00024886,2]
[336466391,1724856645996,-213630.530714,0.00024889,4]
[336466392,1724856646005,-12080.8760212,0.00024889,4]
[336466393,1724856646015,-133519.081696,0.00024889,4]
[336466394,1724856646025,-121264.79399583,0.0002489,14]
[336466395,1724856646041,-4675.74706937,0.0002489,14]
[336466397,1724856647393,-725.00000005,0.0002489,14]
[336466398,1724856647404,-1377.74172289,0.0002489,14]
[336466399,1724856647488,-5350.19999999,0.0002489,14]
[336466400,1724856647499,-400.30481951,0.0002489,14]
[336466401,1724856647511,-500.0,0.0002489,14]
[336466402,1724856647580,-411.7493109,0.0002489,14]
[336466403,1724856647594,-413.1164353,0.0002489,14]
[336466404,1724856647605,-4782.55471627,0.0002489,14]
[336466405,1724856649268,-3415.85522299,0.00014507,2]
[336466406,1724856649279,-333.01477701,0.00014507,2]
[336466407,1724856649289,-197.98522299,0.00021589,30]
[336466408,1724856649301,-1424.69477701,0.00021589,30]
[336466409,1724856649310,-1622.68,0.0002475,30]
[336466410,1724856649319,-1741.01490028,0.0002489,14]
[336466411,1724856649331,-3035.9509973,0.0002489,14]
[336466412,1724856649342,-3077.64182638,0.0002489,14]
[336466413,1724856649353,-500.0,0.0002489,14]
[336466414,1724856649363,-6048.65000081,0.0002489,14]
[336466415,1724856649375,-2479.97084612,0.0002489,14]
[336466416,1724856649390,-1141.6,0.0002489,14]
[336466417,1724856649401,-594.96858718,0.0002489,14]
[336466418,1724856649412,-1195.57080635,0.0002489,14]
[336466419,1724856649423,-3357.21204806,0.0002489,14]
[336466420,1724856649438,-6172.81784563,0.0002489,14]
[336466421,1724856649450,-295.25514135,0.0002489,14]
[336466422,1724856649463,-1458.83968283,0.0002489,14]
[336466423,1724856649475,-409.14193754,0.0002489,14]
[336466424,1724856649487,-2128.69674288,0.0002489,14]
[336466425,1724856649500,-725.0000001,0.0002489,14]
[336466426,1724856649513,-432.5,0.0002489,14]
[336466427,1724856649526,-1529.65936875,0.0002489,14]
[336466428,1724856649538,-351.32135874,0.0002489,14]
[336466429,1724856649562,-383.87296915,0.0002489,14]
[336466430,1724856649574,-1834.85362429,0.0002489,14]
[336466431,1724856649586,-2189.5392959,0.0002489,14]
[336466432,1724856649600,-769.05650803,0.0002489,14]
[336466433,1724856649612,-684.36699985,0.0002489,14]
[336466434,1724856649623,-2858.56287337,0.0002489,14]
[336466435,1724856649636,-4666.27831828,0.0002489,14]
[336466436,1724856649647,-717.12394233,0.0002489,14]
[336466437,1724856649659,-6882.92088896,0.0002489,14]
[336466438,1724856649684,-92247.87386453,0.0002489,14]
[336466439,1724856649699,-181.0,0.00024894,120]
[336466440,1724856649709,-150.5,0.00024894,120]
[336466441,1724856649719,-390.0,0.00024894,120]
[336466442,1724856649728,-150.5,0.00024894,120]
[336466443,1724856649737,-150.5,0.00024894,120]
[336466444,1724856649747,-1315.0,0.00024894,120]
[336466445,1724856649756,-68134.30945948,0.00024894,2]
[336466446,1724856649765,-608.26536667,0.00024894,2]
[336466447,1724856649775,-2592.89095006,0.00024898,2]
[336466448,1724856649785,-6287.23488743,0.00024899,2]
[336466449,1724856649794,-33669.59222302,0.00024899,15]
[336466450,1724856649805,-6649.48547676,0.00024899,15]
[336466451,1724856649817,-677.99999947,0.00024899,15]
[336466452,1724856649828,-451.34,0.00024899,15]
[336466453,1724856649839,-2247.9574,0.00024899,15]
[336466454,1724856649850,-1033.05017563,0.00024899,15]
[336466455,1724856649861,-970.74448452,0.00024899,15]
[336466456,1724856649872,-379.71008372,0.00024899,15]
[336466457,1724856649882,-1104.89183922,0.00024899,15]
[336466458,1724856660831,155.94399844,0.000108,2]
[336466459,1724856666958,155.0,0.00017917,60]
[336466460,1724856747978,155.0,0.00021717,60]
[336466461,1724856820460,2000.0,0.00022606,120]
[336466462,1724857160065,158.84,0.00010959,2]
[336466463,1724857202493,155.0,0.00014782,60]
[336466464,1724857217502,155.0,0.00014782,60]
[336466465,1724857240032,1050.0,0.0001,2]
[336466466,1724857273983,213.56564949,0.00013283,60]
[336466467,1724857276594,500.0,0.00010959,2]
[336466468,1724857284594,500.0,0.0001,2]
[336466469,1724857399754,500.0,0.0001,2]
[336466470,1724857467472,1142.56,0.0001,2]
[336466471,1724857499600,500.0,0.0001,2]
[336466472,1724857519387,2000.0,0.00024,120]
[336466473,1724857549719,2000.0,0.00022,60]
[336466501,1724857831825,-150.0,0.00011,2]
[336466503,1724857831835,-955.84194083,0.00012938,2]
[336466505,1724857831846,-711.82892756,0.00013042,2]
[336466506,1724857831856,-293.02962661,0.00013042,2]
[336466507,1724857831866,-330.5830106,0.00013052,2]
[336466508,1724857831875,-298.98706835,0.00013292,2]
[336466509,1724857831885,-500.0,0.00013292,2]
[336466510,1724857831895,-401.92563255,0.00013292,2]
[336466511,1724857831904,-155.0,0.00013688,2]
[336466512,1724857831914,-300.0,0.00014565,2]
[336466513,1724857831923,-3746.56,0.00014566,2]
[336466514,1724857831933,-300.0,0.00014659,2]
[336466515,1724857831943,-499.99,0.0001466,2]
[336466516,1724857831952,-3804.88,0.0001466,2]
[336466517,1724857831962,-265.11723843,0.00014681,2]
[336466518,1724857831980,-16486.56,0.00014682,2]
[336466519,1724857831992,-155.67108464,0.00014753,2]
[336466520,1724857832002,-1736.23822515,0.00014753,2]
[336466521,1724857832011,-156.28604354,0.00014753,2]
[336466522,1724857832024,-528.97740399,0.00014753,2]
[336466523,1724857832033,-380.35876131,0.00014753,2]
[336466524,1724857832043,-10397.0,0.00015,2]
[336466525,1724857832053,-3813.85,0.00015125,2]
[336466526,1724857832063,-420.0,0.00016049,2]
[336466527,1724857832073,-183.43,0.000174,7]
[336466528,1724857832083,-587.0,0.0001757,2]
[336466529,1724857832094,-459.6124,0.00017817,2]
[336466530,1724857832106,-565.11914253,0.00018168,2]
[336466532,1724857832115,-326.88,0.00018773,2]
[336466533,1724857832125,-823.0,0.00019237,2]
[336466535,1724857832136,-250.0,0.00019404,2]
[336466537,1724857832146,-150.0,0.00019451,2]
[336466539,1724857832155,-239.94,0.00019745,2]
[336466541,1724857832165,-500.0,0.0002,2]
[336466543,1724857832174,-500.0,0.0002,2]
[336466545,1724857832184,-500.0,0.0002,2]
[336466547,1724857832193,-500.0,0.0002,2]
[336466549,1724857832203,-500.0,0.0002,2]
[336466550,1724857832212,-500.0,0.0002,2]
[336466551,1724857832222,-500.0,0.0002,2]
[336466552,1724857832233,-500.0,0.0002,2]
[336466553,1724857832243,-500.0,0.0002,2]
[336466554,1724857832253,-500.0,0.0002,2]
[336466555,1724857832263,-500.0,0.0002,2]
[336466556,1724857832272,-500.0,0.0002,2]
[336466557,1724857832283,-500.0,0.0002,2]
[336466558,1724857832292,-500.0,0.0002,2]
[336466559,1724857832302,-500.0,0.0002,2]
[336466560,1724857832312,-500.0,0.0002,2]
[336466561,1724857832322,-500.0,0.0002,2]
[336466562,1724857832331,-500.0,0.0002,2]
[336466563,1724857832343,-500.0,0.0002,2]
[336466564,1724857832353,-500.0,0.0002,2]
[336466565,1724857832363,-500.0,0.0002,2]
[336466566,1724857832372,-500.0,0.0002,2]
[336466567,1724857832382,-500.0,0.0002,2]
[336466568,1724857832392,-500.0,0.0002,2]
[336466569,1724857832401,-500.0,0.0002,2]
[336466570,1724857832411,-500.0,0.0002,2]
[336466571,1724857832420,-500.0,0.0002,2]
[336466572,1724857832430,-500.0,0.0002,2]
[336466573,1724857832440,-500.0,0.0002,2]
[336466574,1724857832449,-500.0,0.0002,2]
[336466575,1724857832459,-500.0,0.0002,2]
[336466576,1724857832469,-500.0,0.0002,2]
[336466577,1724857832479,-500.0,0.0002,2]
[336466578,1724857832489,-500.0,0.0002,2]
[336466579,1724857832498,-500.0,0.0002,2]
[336466580,1724857832508,-500.0,0.0002,2]
[336466581,1724857832517,-500.0,0.0002,2]
[336466582,1724857832526,-500.0,0.0002,2]
[336466583,1724857832536,-500.0,0.0002,2]
[336466584,1724857832545,-500.0,0.0002,2]
[336466585,1724857832555,-500.0,0.0002,2]
[336466586,1724857832564,-500.0,0.0002,2]
[336466587,1724857832573,-500.0,0.0002,2]
[336466588,1724857832582,-500.0,0.0002,2]
[336466589,1724857832593,-500.0,0.0002,2]
[336466590,1724857832602,-500.0,0.0002,2]
[336466591,1724857832612,-500.0,0.0002,2]
[336466592,1724857832621,-500.0,0.0002,2]
[336466593,1724857832630,-500.0,0.0002,2]
[336466594,1724857832639,-500.0,0.0002,2]
[336466595,1724857832649,-500.0,0.0002,2]
[336466596,1724857832658,-500.0,0.0002,2]
[336466597,1724857832667,-500.0,0.0002,2]
[336466598,1724857832677,-500.0,0.0002,2]
[336466599,1724857832687,-500.0,0.0002,2]
[336466600,1724857832696,-500.0,0.0002,2]
[336466601,1724857832706,-500.0,0.0002,2]
[336466602,1724857832715,-2751.0,0.00020048,2]
[336466603,1724857832725,-2429.18,0.00020241,2]
[336466604,1724857832735,-200.0,0.00020241,2]
[336466605,1724857832744,-1500.0,0.00020275,2]
[336466606,1724857832753,-200.0,0.00020417,2]
[336466607,1724857832763,-150.0,0.00020474,2]
[336466608,1724857832772,-500.0,0.00020586,2]
[336466609,1724857832781,-248.53,0.00020628,2]
[336466610,1724857832791,-7000.0,0.00020796,4]
[336466611,1724857832800,-438.26,0.00020904,2]
[336466612,1724857832809,-625.04271748,0.0002095,2]
[336466613,1724857832818,-1765.96583556,0.00020986,2]
[336466614,1724857832828,-155.0,0.00021,2]
[336466615,1724857832837,-1001.04,0.00021,2]
[336466616,1724857832848,-326.88,0.00021037,2]
[336466617,1724857832857,-800.0,0.00021059,2]
[336466618,1724857832867,-1152.0,0.00021061,2]
[336466619,1724857832876,-155.0,0.00021094,2]
[336466620,1724857832885,-461.1654,0.00021113,2]
[336466621,1724857832894,-160.0,0.00021151,2]
[336466622,1724857832904,-159.12,0.00021438,2]
[336466623,1724857832914,-1560.76,0.00021589,30]
[336466624,1724857832923,-1451.1123,0.00021626,2]
[336466625,1724857832933,-3756.74,0.00021637,2]
[336466626,1724857832944,-300.0,0.00021719,2]
[336466627,1724857832953,-37685.0998,0.000219,2]
[336466628,1724857832963,-352.0792,0.000219,2]
[336466629,1724857832974,-9016.03,0.00021918,2]
[336466630,1724857832988,-150.0,0.00021918,2]
[336466631,1724857832997,-1000.0,0.00021999,2]
[336466632,1724857833007,-1000.0,0.00021999,2]
[336466633,1724857833017,-1002.11796572,0.00021999,2]
[336466634,1724857833026,-800.0,0.00022,20]
[336466635,1724857833036,-352.87872341,0.00022,2]
[336466636,1724857833045,-512.36131374,0.00022,2]
[336466637,1724857833055,-538.29837216,0.00022,2]
[336466638,1724857833067,-1100.61982596,0.00022,2]
[336466639,1724857833077,-155.0,0.00022,2]
[336466640,1724857833088,-1001.04,0.0002232,2]
[336466641,1724857833101,-1000.0,0.00022466,2]
[336466642,1724857833111,-150.0,0.00022495,2]
[336466643,1724857833121,-200.0,0.00022772,2]
[336466644,1724857833131,-155.0,0.00023,4]
[336466645,1724857833141,-200.0,0.00023,2]
[336466646,1724857833151,-1613.0,0.00023058,2]
[336466647,1724857833160,-150.0,0.00023071,2]
[336466648,1724857833170,-300.0,0.00023089,2]
[336466649,1724857833180,-180.0,0.00023205,2]
[336466650,1724857833190,-326.88,0.00023301,2]
[336466651,1724857833199,-30013.76988802,0.00023369,2]
[336466652,1724857833209,-30013.76988802,0.00023369,2]
[336466653,1724857833219,-167.0,0.00023533,2]
[336466654,1724857833229,-64514.9542,0.00023546,2]
[336466655,1724857833239,-4929.51300205,0.00023548,2]
[336466656,1724857833249,-1001.04,0.0002364,2]
[336466657,1724857833259,-150.0,0.00023648,2]
[336466658,1724857833269,-4929.51300202,0.00023691,2]
[336466659,1724857833279,-800.0,0.00023692,2]
[336466660,1724857833290,-160.0,0.00023795,2]
[336466661,1724857833300,-4929.51300202,0.00023833,2]
[336466662,1724857833310,-10446.64144624,0.0002384,2]
[336466663,1724857833320,-4929.51300202,0.00023976,2]
[336466664,1724857833329,-6297.05347627,0.00023988,2]
[336466665,1724857833341,-300.0,0.00024,2]
[336466666,1724857833351,-500.0,0.000241,8]
[336466667,1724857833361,-595.49857933,0.00024117,2]
[336466668,1724857833371,-4929.51300202,0.00024118,2]
[336466669,1724857833380,-1933.79797817,0.00024131,2]
[336466670,1724857833390,-155.0,0.00024131,2]
[336466671,1724857833400,-155.0,0.00024131,2]
[336466672,1724857833410,-155.0,0.00024134,2]
[336466673,1724857833419,-869.31384586,0.00024134,2]
[336466674,1724857833429,-322.87579122,0.00024135,2]
[336466675,1724857833439,-677.22994692,0.00024191,2]
[336466676,1724857833449,-1000.0,0.000242,8]
[336466677,1724857833459,-1488.06322442,0.00024201,3]
[336466678,1724857833469,-1488.06322442,0.00024201,3]
[336466679,1724857833479,-150.0,0.00024225,2]
[336466680,1724857833490,-4929.51300202,0.00024261,2]
[336466681,1724857833499,-1600.0,0.000243,8]
[336466682,1724857833509,-23644.0532,0.00024379,2]
[336466683,1724857833519,-468.1942,0.00024392,2]
[336466684,1724857833532,-2139.003,0.00024392,2]
[336466685,1724857833541,-2100.0,0.000244,8]
[336466686,1724857833551,-4929.51300202,0.00024403,2]
[336466687,1724857833561,-1590.93763641,0.000245,2]
[336466688,1724857833571,-2700.0,0.000245,8]
[336466689,1724857833580,-4929.51300202,0.00024546,2]
[336466690,1724857833591,-500.0,0.000246,8]
[336466691,1724857833600,-322.87579122,0.0002465,2]
[336466692,1724857833610,-4261.10745368,0.00024678,4]
[336466693,1724857833620,-4929.51300202,0.00024688,2]
[336466694,1724857833630,-4261.10745368,0.0002469,4]
[336466695,1724857833640,-500.0,0.00024699,15]
[336466696,1724857833650,-2000.0,0.00024699,2]
[336466697,1724857833659,-500.0,0.00024699,2]
[336466698,1724857833669,-500.0,0.00024699,15]
[336466699,1724857833679,-622.0,0.000247,2]
[336466700,1724857833689,-500.0,0.000247,15]
[336466701,1724857833699,-500.0,0.000247,15]
[336466702,1724857833709,-2000.0,0.000247,2]
[336466703,1724857833719,-500.0,0.000247,2]
[336466704,1724857833729,-500.0,0.000247,2]
[336466705,1724857833740,-500.0,0.000247,9]
[336466706,1724857833750,-338.46703319,0.00024747,2]
[336466707,1724857833760,-1560.76,0.0002475,30]
[336466708,1724857833770,-338.46703314,0.00024764,2]
[336466709,1724857833780,-343.1771,0.00024767,2]
[336466710,1724857833790,-508.5222,0.00024775,2]
[336466711,1724857833800,-152.80631539,0.00024777,2]
[336466712,1724857833810,-338.46703314,0.00024781,2]
[336466713,1724857833819,-261.475,0.00024787,2]
[336466714,1724857833829,-229.55880013,0.00024788,2]
[336466715,1724857833841,-4261.10745368,0.0002479,4]
[336466716,1724857833851,-338.46703314,0.00024797,2]
[336466717,1724857833861,-217.0,0.00024799,2]
[336466718,1724857833871,-193.0,0.000248,8]
[336466719,1724857833882,-1930.05,0.000248,15]
[336466720,1724857833892,-500.0,0.000248,9]
[336466721,1724857833904,-150.0,0.00024802,2]
[336466722,1724857833915,-338.46703314,0.00024814,2]
[336466723,1724857833926,-16863.4973574,0.0002483,61]
[336466724,1724857833936,-4929.51300202,0.00024831,2]
[336466725,1724857833946,-338.46703314,0.00024831,2]
[336466726,1724857833957,-12783.322361,0.00024837,4]
[336466727,1724857833967,-8522.21490736,0.00024847,4]
[336466728,1724857833980,-765.0,0.00024857,120]
[336466729,1724857833991,-4261.10745368,0.00024866,4]
[336466730,1724857834001,-26443.68038917,0.00024867,4]
[336466731,1724857834018,-11248.99385922,0.00024867,4]
[336466736,1724857838067,-777.16020434,0.00024131,2]
[336466737,1724857838080,-92.15364152,0.00024131,2]
[336466738,1724857838091,-253.59865541,0.00024191,2]
[336466739,1724857838116,-271.118,0.00024306,2]
[336466740,1724857838127,-367.81349436,0.00024499,2]
[336466741,1724857838140,-95.99965996,0.00024867,4]
[336466742,1724857838154,-16055.5,0.00024867,4]
[336466749,1724857838804,-4608.69684329,0.00024867,4]
[336466750,1724857838816,-1466.43431141,0.00024867,4]
[336466751,1724857838864,-333.31,0.00024857,3]
[336466752,1724857838874,-40918.6843766,0.00024867,4]
[336466753,1724857838886,-1070.82849079,0.00024867,4]
[336466754,1724857838899,-12567.43288382,0.00024867,4]
[336466755,1724857838911,-4122.68460433,0.00024867,4]
[336466756,1724857838922,-1544.59791416,0.00024867,4]
[336466757,1724857838934,-1014.6173005,0.00024867,4]
[336466786,1724857840173,-701.66503495,0.00024867,4]
[336466787,1724857840185,-1209.49724686,0.00024867,4]
[336466788,1724857840287,-3050.25075951,0.00024867,4]
[336466789,1724857840299,-1188.5,0.00024867,4]
[336466790,1724857840311,-440.00001,0.00024867,4]
[336466791,1724857840323,-295.87558,0.00024867,4]
[336466792,1724857840364,-1250.25,0.00024867,4]
[336466794,1724857841731,-300.0,0.00024867,4]
[336466795,1724857841743,-1765.19999999,0.00024867,4]
[336466796,1724857841754,-1229.63887238,0.00024867,4]
[336466797,1724857841765,-2015.94855758,0.00024867,4]
[336466815,1724857842942,-485.43,0.00024131,2]
[336466818,1724857842954,-1448.36797817,0.00024131,2]
[336466820,1724857842964,-52883.75126748,0.00024867,4]
[336466822,1724857842976,-765.0,0.00024867,120]
[336466823,1724857842986,-4261.10745368,0.00024867,4]
[336466826,1724857842996,-18476.18130283,0.00024867,4]
[336466829,1724857843049,-895.88804481,0.00024867,4]
[336466830,1724857843063,-1509.89121034,0.00024867,4]
[336466831,1724857843142,-2498.82070866,0.00024867,4]
[336466842,1724857845879,-155.0,0.00024131,2]
[336466843,1724857845889,-549.85845544,0.00024788,2]
[336466844,1724857845900,-264.06840755,0.00024788,2]
[336466845,1724857845912,-353.47,0.00024788,2]
[336466846,1724857845924,-3747.77973238,0.00024788,2]
[336466847,1724857845934,-5045.88231786,0.00024867,4]
[336466848,1724857845943,-273.0,0.00024869,120]
[336466849,1724857845954,-921.0,0.00024869,120]
[336466850,1724857845963,-273.0,0.00024871,120]
[336466851,1724857845974,-921.0,0.00024871,120]
[336466852,1724857845984,-765.0,0.00024871,120]
[336466853,1724857845994,-200.0,0.00024873,2]
[336466854,1724857846004,-500.0,0.00024873,2]
[336466855,1724857846015,-158.44222575,0.00024874,2]
[336466856,1724857846024,-300.0,0.00024876,5]
[336466857,1724857846033,-300.0,0.00024876,5]
[336466858,1724857846043,-593.0,0.00024877,2]
[336466859,1724857846053,-107456.43392355,0.00024877,4]
[336466860,1724857846066,-831.659,0.00024877,4]
[336466861,1724857846078,-788.36999,0.00024877,4]
[336466862,1724857846089,-118336.84576245,0.00024877,4]
[336466863,1724857846099,-765.0,0.00024877,120]
[336466864,1724857846112,-24765.69367108,0.00024877,4]
[336466865,1724857846123,-1477.911215,0.00024877,4]
[336466868,1724857846154,-1215.30012531,0.00024877,4]
[336466870,1724857846165,-6335.89421094,0.00024877,4]
[336466903,1724857888512,157.41,0.00010959,2]
[336466905,1724858594692,246.0,0.00023977,120]
[336466906,1724858594771,828.0,0.00023977,120]
[336466907,1724858595212,246.0,0.00023967,120]
[336466908,1724858595655,828.0,0.00023967,120]
[336466909,1724858595885,246.0,0.00023957,120]
[336466910,1724858595952,828.0,0.00023957,120]
[336466911,1724858596095,246.0,0.0002398,120]
[336466912,1724858596237,828.0,0.0002398,120]
[336466913,1724858596624,246.0,0.0002397,120]
[336466914,1724858596782,828.0,0.0002397,120]
[336466915,1724858597022,246.0,0.0002396,120]
[336466916,1724858597269,828.0,0.0002396,120]
[336466917,1724858597498,246.0,0.0002398,120]
[336466918,1724858597782,828.0,0.0002398,120]
[336466919,1724858597988,246.0,0.0002397,120]
[336466920,1724858598328,828.0,0.0002397,120]
[336466923,1724858832209,1720.91041613,0.000163,120]
[336466928,1724858871781,361.58885658,0.0002,120]
[336466929,1724858879585,204.62312072,0.0001,2]
[336466930,1724858879652,2000.0,0.00024,120]
[336466931,1724858912040,9784.42352944,0.0001,2]
[336466932,1724858922517,154.71235763,0.00015,120]
[336466933,1724858924287,1010.95778269,0.00015,120]
[336466937,1724858937372,154.18,0.00010959,2]
[336466945,1724858987611,536.38066794,0.00010959,2]
[336466998,1724859032717,-155.0,0.00010989,2]
[336466999,1724859032727,-29368.6,0.0001099,4]
[336467000,1724859032739,-10192.39353571,0.0001099,4]
[336467001,1724859032749,-236.11042651,0.00010999,2]
[336467002,1724859032758,-155.59382276,0.00012126,2]
[336467003,1724859032768,-2505.60920584,0.00012126,2]
[336467004,1724859032777,-298.50510703,0.00013052,2]
[336467005,1724859032786,-500.0,0.00013086,2]
[336467006,1724859032796,-155.0,0.00013086,2]
[336467007,1724859032805,-1739.40578979,0.00013283,2]
[336467008,1724859032814,-297.52,0.00013699,2]
[336467009,1724859032823,-587.42,0.00013971,2]
[336467010,1724859032832,-156.02844419,0.00013971,2]
[336467011,1724859032841,-179.99,0.00014235,2]
[336467012,1724859032851,-775.00144906,0.00014517,2]
[336467013,1724859032860,-155.90332643,0.00014517,2]
[336467014,1724859032869,-1395.84262891,0.00014517,2]
[336467015,1724859032878,-277.86171781,0.00014753,2]
[336467016,1724859032887,-297.76769109,0.00014782,2]
[336467017,1724859032896,-4076.08170277,0.00015,4]
[336467018,1724859032905,-500.0,0.00017713,2]
[336467019,1724859032922,-157.41,0.00018372,2]
[336467020,1724859032931,-154.18,0.00018372,2]
[336467021,1724859032940,-340.56,0.00019007,2]
[336467022,1724859032949,-485.26,0.00019722,2]
[336467023,1724859032963,-560.56,0.00019777,2]
[336467024,1724859032972,-1058.85157637,0.0002,2]
[336467025,1724859032981,-503.0,0.0002,5]
[336467026,1724859032991,-2751.0,0.00020112,2]
[336467027,1724859033000,-200.0,0.00020112,2]
[336467028,1724859033010,-1000.0,0.00020234,2]
[336467029,1724859033019,-6812.88827128,0.00020683,2]
[336467033,1724859038425,-5901.89999999,0.00013283,2]
[336467034,1724859038436,-3387.023459,0.00013283,2]
[336467036,1724859038470,-10515.31600317,0.00013283,2]
[336467037,1724859038479,-155.0,0.00014235,2]
[336467038,1724859038488,-17087.11172872,0.00020683,2]
[336467039,1724859038498,-155.0,0.00021,2]
[336467040,1724859038507,-303.32,0.00021,2]
[336467041,1724859038516,-1005.76,0.00021,2]
[336467042,1724859038525,-286.22403707,0.00021271,2]
[336467043,1724859038538,-54.33596293,0.00021271,2]
[336467044,1724859038548,-167.0,0.00021385,2]
[336467045,1724859038557,-1337.79,0.00021589,30]
[336467046,1724859038566,-300.0,0.00021638,2]
[336467048,1724859038576,-3894.95,0.00021918,2]
[336467049,1724859038586,-7513.35,0.00021918,2]
[336467050,1724859038595,-150.0,0.00021918,2]
[336467051,1724859038604,-1005.76,0.00022055,2]
[336467052,1724859038614,-254.41,0.00022167,2]
[336467053,1724859038623,-1000.0,0.00022466,2]
[336467054,1724859038633,-150.0,0.00022495,2]
[336467055,1724859038642,-1000.0,0.00022764,2]
[336467056,1724859038651,-155.0,0.00023,4]
[336467057,1724859038662,-200.0,0.00023,2]
[336467058,1724859038671,-5000.0,0.00023,14]
[336467059,1724859038680,-300.0,0.00023007,2]
[336467060,1724859038690,-150.0,0.00023071,2]
[336467061,1724859038700,-1005.76,0.0002311,2]
[336467062,1724859038709,-869.31384586,0.00023179,2]
[336467063,1724859038720,-180.0,0.00023205,2]
[336467064,1724859038729,-3000.0,0.000233,2]
[336467065,1724859038739,-200.0,0.000233,2]
[336467066,1724859038748,-3646.02588972,0.000233,2]
[336467067,1724859038758,-2000.0,0.000233,2]
[336467068,1724859038767,-328.0,0.000233,2]
[336467069,1724859038777,-1200.0,0.000233,2]
[336467070,1724859038786,-1000.0,0.000233,2]
[336467071,1724859038796,-340.56,0.00023534,2]
[336467072,1724859038805,-304.0,0.00023559,2]
[336467073,1724859038815,-21844.17338555,0.00023646,2]
[336467084,1724859040157,-350.03885476,0.00023646,2]
[336467085,1724859040410,-592.434274,0.00023646,2]
[336467086,1724859040425,-650.0910663,0.00023646,2]
[336467087,1724859040437,-3459.71465065,0.00023646,2]
[336467090,1724859040624,-295.0,0.00023646,2]
[336467091,1724859042307,1050.0,0.0001,2]
[336467122,1724859043267,-1260.0,0.00022,20]
[336467133,1724859046194,-65.041443,0.00022,20]
[336467134,1724859046204,-2025.67288652,0.00023646,2]
[336467135,1724859046215,-453.04,0.00023646,2]
[336467136,1724859046226,-299.87741658,0.00023646,2]